bitfinex/quotes_ETHUSD_20241122
["timestamp","ask_amount","ask_price","bid_price","bid_amount"]
[1732305158332,1.2959,3268.6,3267.0,0.3045]
[1732305158495,0.03824096,3270.2,3267.1,0.37533823]
[1732305158496,1.52423315,3269.6,3267.1,0.37533823]
[1732305158827,0.03823793,3270.2,3267.6,0.3045]
[1732305158828,1.52215998,3269.4,3267.6,0.3045]
[1732305159116,1.56311136,3269.2,3267.6,0.3045]
[1732305159897,1.56311136,3269.2,3267.9,0.3045]
[1732305161011,1.56311136,3269.2,3267.2,0.96614837]
[1732305161181,1.56311136,3269.2,3267.2,1.5734134]
[1732305161521,1.50788525,3269.0,3267.1,0.70802399]
[1732305161827,0.55,3268.9,3267.1,0.45968691]
[1732305162031,0.55,3268.9,3267.1,0.33268576]
[1732305162032,1.602,3268.7,3267.1,0.33268576]
[1732305162315,1.57937723,3268.6,3266.7,2.26058574]
[1732305162514,1.57937723,3268.6,3266.8,2.70516338]
[1732305162720,1.57937723,3268.6,3266.9,1.57268642]
[1732305162932,1.57937723,3268.6,3266.9,1.92732989]
[1732305163081,1.57937723,3268.6,3267.0,1.57268642]
[1732305163276,1.57937723,3268.6,3266.9,0.35464347]
[1732305163525,1.57937723,3268.6,3267.0,1.57230899]
[1732305163779,1.57937723,3268.6,3267.1,0.35464347]
[1732305164084,1.57937723,3268.6,3267.2,1.9049344]
[1732305164411,1.53385903,3268.9,3267.3,1.92633091]
[1732305164614,1.53385903,3268.9,3267.4,4.57168744]
[1732305164787,1.53385903,3268.9,3267.5,1.57161333]
[1732305164983,1.53385903,3268.9,3267.3,3.35464347]
[1732305165187,1.53385903,3268.9,3267.4,1.57160714]
[1732305165430,1.53385903,3268.9,3267.5,1.57160714]
[1732305165722,1.53385903,3268.9,3267.6,1.9042929]
[1732305165921,1.53385903,3268.9,3267.7,1.57160714]
[1732305166123,0.01,3269.9,3267.6,0.68732923]
[1732305166124,0.55,3269.7,3267.6,0.68732923]
[1732305166337,1.54593422,3269.1,3267.7,1.57027666]
[1732305166625,1.54593422,3269.1,3267.5,3.0]
[1732305166626,3.1516413,3268.7,3267.2,1.90594227]
[1732305166828,3.1516413,3268.7,3267.3,1.57040508]
[1732305166987,3.1516413,3268.7,3267.0,1.90594227]
[1732305167189,3.1516413,3268.7,3267.1,3.0]
[1732305167428,3.1516413,3268.7,3266.9,3.0]
[1732305167661,1.51906788,3268.6,3267.1,3.0]
[1732305167861,0.01,3269.2,3267.2,1.04671979]
[1732305167862,1.59726033,3268.4,3267.2,1.04671979]
[1732305168065,1.57896682,3268.2,3267.0,0.3187]
[1732305168225,0.03823824,3270.2,3267.2,3.34904492]
[1732305168226,1.59594398,3269.3,3267.2,3.34904492]
[1732305168420,1.22085,3276.4,3267.0,0.33268576]
[1732305168421,0.55,3269.0,3267.4,3.0]
[1732305168627,0.55,3268.8,3267.3,1.88624492]
[1732305168843,1.58514332,3268.7,3267.3,1.5372]
[1732305170526,1.59594398,3269.3,3267.3,1.5372]
[1732305170769,0.03823862,3270.5,3267.5,3.0]
[1732305170770,1.57317724,3269.5,3267.5,3.0]
[1732305170982,1.57317724,3269.5,3267.6,1.55]
[1732305171472,1.59594398,3269.3,3267.6,1.55]
[1732305171627,1.59594398,3269.3,3267.6,0.63742931]
[1732305172166,1.6109,3269.4,3267.6,0.63742931]
[1732305172167,1.50179834,3269.0,3267.6,0.63742931]
[1732305173466,0.55,3268.9,3267.6,0.63742931]
[1732305173674,1.5065824,3268.6,3267.6,0.63742931]
[1732305174750,1.57256369,3268.9,3267.7,0.6757]
[1732305174952,1.57256369,3268.9,3267.6,0.62297111]
[1732305175539,1.57256369,3268.9,3267.6,0.16133961]
[1732305175838,1.57256369,3268.9,3267.5,1.25389942]
[1732305176159,1.57256369,3268.9,3267.5,3.0]
[1732305176463,1.57256369,3268.9,3267.3,0.16133961]
[1732305176678,1.57256369,3268.9,3267.3,0.48504713]
[1732305176882,1.57256369,3268.9,3267.3,0.68404493]
[1732305177039,1.57256369,3268.9,3267.3,5.5899872]
[1732305177472,1.57256369,3268.9,3267.3,3.36033741]
[1732305177767,1.57256369,3268.9,3267.4,0.36033741]
[1732305178064,1.57256369,3268.9,3267.4,3.36033741]
[1732305178270,1.57256369,3268.9,3267.4,3.68404493]
[1732305178472,1.57256369,3268.9,3267.5,0.32370752]
[1732305178669,1.57256369,3268.9,3267.6,1.39177075]
[1732305178841,1.57256369,3268.9,3267.6,5.47658413]
[1732305179170,1.57256369,3268.9,3267.6,0.38694677]
[1732305179372,1.57256369,3268.9,3267.6,3.38694677]
[1732305179548,1.57256369,3268.9,3267.6,0.38694677]
[1732305179747,1.53866677,3269.2,3267.6,3.70045422]
[1732305179947,1.53866677,3269.2,3267.7,0.83643085]
[1732305180160,1.53866677,3269.2,3267.8,0.38644352]
[1732305180472,1.53866677,3269.2,3267.8,3.31451317]
[1732305180767,1.53866677,3269.2,3267.8,5.5409561]
[1732305180975,1.53866677,3269.2,3267.6,3.0]
[1732305181165,1.53866677,3269.2,3267.5,2.5409561]
[1732305181166,1.53866677,3269.2,3267.5,3.0]
[1732305181670,1.53866677,3269.2,3267.5,5.5409561]
[1732305181835,1.53866677,3269.2,3267.5,5.86140425]
[1732305182781,1.53866677,3269.2,3267.5,3.32044815]
[1732305183278,2.09123117,3269.9,3267.5,3.32044815]
[1732305183446,0.55,3269.4,3267.5,3.32044815]
[1732305183802,1.59760547,3269.1,3267.5,5.86140425]
[1732305184071,1.5170452,3268.9,3267.5,0.32044815]
[1732305184768,1.52843531,3268.9,3267.5,0.32044815]
[1732305184943,1.58048971,3269.6,3267.7,2.5409561]
[1732305185273,1.54123108,3269.1,3267.4,2.5409561]
[1732305185474,1.6246,3268.8,3267.4,2.5409561]
[1732305185678,1.6246,3268.8,3267.3,2.5409561]
[1732305185889,0.3593,3268.7,3267.6,1.26310851]
[1732305186174,0.3593,3268.7,3267.3,2.5409561]
[1732305186175,1.6246,3268.6,3267.3,1.26310851]
[1732305186415,1.6246,3268.6,3266.8,3.15824578]
[1732305186416,1.6246,3268.6,3267.1,1.26310851]
[1732305186990,1.6246,3268.6,3267.2,1.56705012]
[1732305187322,1.6246,3268.6,3267.1,1.26310851]
[1732305187480,1.6246,3268.6,3267.2,1.56741754]
[1732305187681,1.6246,3268.6,3266.9,1.26310851]
[1732305187881,0.01,3269.1,3266.8,1.26310851]
[1732305187882,0.55,3268.1,3266.8,1.26310851]
[1732305188223,1.6246,3268.0,3266.8,1.26310851]
[1732305188525,1.474,3268.0,3267.0,0.1506]
[1732305188826,1.56312004,3268.6,3267.2,1.26310851]
[1732305188827,0.55,3268.5,3267.2,1.26310851]
[1732305189026,0.01,3270.7,3267.2,1.26310851]
[1732305189027,1.58691708,3269.5,3267.3,3.0]
[1732305189210,1.58691708,3269.5,3267.4,1.71816409]
[1732305189392,1.50232001,3269.1,3267.5,4.56756409]
[1732305189588,1.50232001,3269.1,3267.6,3.0]
[1732305189886,1.50232001,3269.1,3267.4,0.1506]
[1732305190210,1.50232001,3269.1,3267.5,3.0]
[1732305190419,1.50232001,3269.1,3267.4,1.41370851]
[1732305190420,1.50232001,3269.1,3267.6,1.56816321]
[1732305190588,0.01,3269.2,3267.5,3.0]
[1732305190589,1.5103408,3268.9,3267.5,3.0]
[1732305190783,0.55,3268.8,3267.6,1.56867114]
[1732305190990,1.5103408,3268.9,3267.7,4.56867114]
[1732305191221,0.55,3269.3,3267.8,3.0]
[1732305191487,1.53083727,3269.0,3267.6,1.26310851]
[1732305191712,3.1584408,3268.9,3267.7,3.0]
[1732305191920,1.6481,3268.8,3267.7,3.0]
[1732305192100,1.55829158,3268.5,3267.5,4.26310851]
[1732305192299,1.6481,3268.4,3267.7,0.67370573]
[1732305192612,1.53943896,3268.8,3267.3,1.89572875]
[1732305192613,1.6481,3268.2,3267.3,1.26310851]
[1732305192823,1.6481,3268.0,3267.1,1.26310851]
[1732305193044,0.55,3267.9,3267.2,1.57100997]
[1732305193184,0.55,3267.9,3267.0,1.26310851]
[1732305193390,1.6481,3267.8,3267.1,1.57240183]
[1732305193629,1.50337345,3267.7,3266.9,1.26310851]
[1732305193799,0.55,3267.9,3266.7,1.26310851]
[1732305193800,3.15229248,3267.6,3266.7,1.26310851]
[1732305194031,1.5034,3267.3,3266.5,1.26310851]
[1732305194218,1.5034,3267.3,3266.6,1.26310851]
[1732305194424,0.55,3267.7,3266.6,2.83707013]
[1732305194764,0.55,3267.7,3266.7,1.57396162]
[1732305194937,0.55,3267.7,3266.6,1.26310851]
[1732305195132,0.55,3267.7,3266.7,2.83712985]
[1732305195332,1.51304942,3267.9,3266.8,4.57402134]
[1732305195660,1.50337345,3267.7,3266.9,1.03466735]
[1732305195834,1.50337345,3267.7,3266.8,4.26310851]
[1732305196022,0.55,3267.5,3266.8,1.26310851]
[1732305196350,0.55,3267.5,3266.9,1.26310851]
[1732305196726,0.55,3267.5,3266.8,1.27142518]
[1732305196928,0.55,3267.5,3266.7,1.89572875]
[1732305197144,0.55,3267.9,3266.8,1.89572875]
[1732305197776,0.55,3267.5,3266.8,1.89572875]
[1732305197925,1.611,3267.6,3266.8,1.89572875]
[1732305198123,1.611,3267.6,3267.0,1.89572875]
[1732305198358,1.611,3267.6,3267.2,1.89572875]
[1732305198560,1.611,3267.6,3267.3,1.89572875]
[1732305199060,1.611,3267.6,3267.3,6.99835769]
[1732305199360,1.6063,3267.9,3267.5,3.0]
[1732305199572,1.6063,3267.9,3267.5,4.89572875]
[1732305199726,1.6063,3268.4,3267.5,4.89572875]
[1732305199922,1.6063,3268.4,3267.4,2.5409561]
[1732305199923,1.6063,3268.4,3267.7,3.74778645]
[1732305200126,1.6063,3268.4,3267.6,3.0]
[1732305200366,1.6063,3268.4,3267.5,3.0]
[1732305200669,1.6063,3268.4,3267.4,3.0]
[1732305200960,1.6063,3268.4,3267.6,3.0]
[1732305201164,1.6063,3268.4,3267.6,7.64777411]
[1732305201367,1.6063,3268.4,3267.7,2.10681801]
[1732305202422,1.6063,3268.4,3267.6,5.10681801]
[1732305202622,1.6063,3268.4,3267.7,2.10681801]
[1732305202835,1.6063,3268.4,3267.7,2.42726616]
[1732305203048,1.6063,3268.4,3267.8,3.0]
[1732305203260,1.6063,3268.4,3267.8,5.5409561]
[1732305203432,1.5584,3269.0,3268.0,5.5409561]
[1732305203639,1.5584,3269.0,3267.9,5.29163272]
[1732305203640,1.5584,3269.0,3268.2,5.5409561]
[1732305203837,1.5584,3269.0,3268.4,4.5538]
[1732305204055,1.59407896,3269.6,3268.6,5.5409561]
[1732305204056,1.5584,3269.5,3268.6,5.5409561]
[1732305204256,1.5584,3269.5,3268.7,2.10681801]
[1732305205023,1.5584,3269.5,3268.8,3.0]
[1732305205269,1.5584,3269.5,3268.9,2.10621315]
[1732305205430,1.5584,3269.5,3268.8,2.10621315]
[1732305205761,1.5584,3269.5,3268.9,7.47177157]
[1732305205964,1.5748,3270.3,3269.1,0.65554125]
[1732305206164,1.5748,3270.3,3269.1,0.35123648]
[1732305206371,1.5748,3270.3,3269.1,2.00473648]
[1732305206526,1.5748,3270.3,3269.2,0.35123648]
[1732305206866,1.5748,3270.3,3269.5,1.27270114]
[1732305207026,1.5748,3270.3,3269.6,1.62393762]
[1732305207572,1.5687,3270.7,3269.9,1.27270114]
[1732305207734,1.5687,3270.7,3269.8,1.27270114]
[1732305207933,1.5687,3270.7,3269.9,0.35123648]
[1732305208790,1.5904,3271.3,3270.1,1.27270114]
[1732305208985,1.5904,3271.3,3269.9,3.35123648]
[1732305208986,1.5904,3271.3,3270.3,1.27270114]
[1732305209275,1.5904,3271.3,3270.4,4.95983648]
[1732305209582,1.5904,3271.8,3270.4,6.23253762]
[1732305209885,1.5904,3271.8,3270.6,4.27270114]
[1732305210045,1.5904,3271.8,3270.7,0.39456982]
[1732305211186,1.6147,3272.2,3270.8,1.6528]
[1732305211481,1.59853105,3272.7,3271.0,1.6528]
[1732305211482,1.6147,3272.6,3271.0,1.6528]
[1732305211690,1.6147,3272.6,3271.1,1.68643762]
[1732305211843,1.6147,3272.6,3271.3,1.27270114]
[1732305212044,1.16061363,3272.6,3271.4,0.41373648]
[1732305213302,0.55,3272.5,3271.1,3.0]
[1732305213461,1.16061363,3272.6,3271.3,0.37589595]
[1732305214759,1.16061363,3272.6,3271.4,1.5747]
[1732305214971,1.52393541,3273.3,3271.5,3.37589595]
[1732305215695,1.52393541,3273.3,3271.6,1.04250937]
[1732305215985,1.52393541,3273.3,3271.4,4.5747]
[1732305216183,1.52393541,3273.3,3271.6,3.0]
[1732305216417,1.52393541,3273.3,3271.4,4.5747]
[1732305216558,0.01,3272.8,3271.4,1.5747]
[1732305217207,0.01,3272.8,3271.5,0.37589595]
[1732305217404,0.55,3273.1,3271.6,2.6020334]
[1732305217571,0.55,3273.1,3271.7,1.04081336]
[1732305217759,0.55,3273.1,3271.5,1.64859709]
[1732305217760,0.55,3273.1,3271.6,3.0]
[1732305217965,0.55,3272.9,3271.7,1.41670367]
[1732305218160,0.55,3272.9,3271.8,0.37589595]
[1732305218407,0.55,3272.9,3271.6,0.37589595]
[1732305218588,0.55,3272.9,3271.7,1.04009319]
[1732305218788,1.5355,3273.0,3271.8,0.37589595]
[1732305219419,0.55,3272.9,3271.5,4.27270114]
[1732305219568,1.5355,3273.0,3271.7,3.37589595]
[1732305219905,1.5355,3273.0,3271.8,1.03939326]
[1732305220102,1.5355,3273.0,3271.8,1.41528921]
[1732305220260,1.5355,3273.0,3271.8,0.37589595]
[1732305220783,1.5355,3273.0,3271.9,1.03878293]
[1732305220986,1.5355,3273.0,3272.0,0.37589595]
[1732305222188,0.03818872,3274.3,3272.1,2.57264225]
[1732305222189,0.01,3273.6,3272.1,2.57264225]
[1732305222498,0.01,3273.4,3272.2,4.41343381]
[1732305222666,0.01,3273.4,3272.2,0.37589595]
[1732305222862,0.1485331,3274.4,3272.2,0.37589595]
[1732305222863,0.01,3273.6,3272.2,0.37589595]
[1732305223111,0.01,3273.4,3272.2,0.37589595]
[1732305223663,0.1485331,3274.4,3271.9,1.27270114]
[1732305223664,0.01,3273.2,3271.9,1.27270114]
[1732305223869,0.01,3273.2,3271.8,3.0]
[1732305224207,0.01,3273.2,3271.7,3.37589595]
[1732305224397,0.01,3273.0,3271.9,3.0]
[1732305224608,0.01,3273.0,3271.7,3.37589595]
[1732305224978,0.01,3273.0,3271.7,0.37589595]
[1732305225382,1.5455,3272.9,3271.7,0.37589595]
[1732305225732,1.6647,3272.7,3271.7,0.37589595]
[1732305225881,1.6647,3272.7,3271.2,3.44236834]
[1732305225882,1.6647,3272.5,3271.2,2.80940114]
[1732305226064,0.55,3272.8,3271.3,1.03656371]
[1732305226065,0.01,3272.4,3271.3,1.03656371]
[1732305226270,1.6647,3272.3,3271.4,0.37589595]
[1732305228516,1.6647,3272.3,3270.9,1.27270114]
[1732305228678,1.6647,3272.3,3271.0,2.96701013]
[1732305228872,1.6647,3272.3,3271.0,0.37589595]
[1732305229513,0.55,3272.8,3271.0,0.37589595]
[1732305229514,0.01,3272.1,3271.0,0.37589595]
[1732305229811,0.01,3272.1,3270.6,1.90566834]
[1732305229812,1.6141,3272.0,3270.6,0.37589595]
[1732305229988,1.6141,3272.0,3270.7,0.37589595]
[1732305230514,1.5141,3272.0,3270.7,0.37589595]
[1732305233713,1.5973,3271.8,3270.7,0.37589595]
[1732305233897,0.01,3272.1,3270.7,0.37589595]
[1732305234988,0.55,3272.6,3270.7,0.37589595]
[1732305235193,0.76867326,3272.6,3270.7,0.37589595]
[1732305235387,0.55,3272.6,3270.7,0.37589595]
[1732305235715,0.55,3272.6,3270.8,1.03737562]
[1732305236084,0.55,3272.6,3270.8,1.41327157]
[1732305236303,0.55,3272.6,3270.8,0.37589595]
[1732305236614,1.56568371,3273.4,3271.0,4.6511]
[1732305236815,1.51144091,3273.0,3271.1,0.37589595]
[1732305236980,1.5084,3272.7,3271.1,0.37589595]
[1732305237182,1.5084,3272.6,3271.1,0.37589595]
[1732305237873,1.6146,3272.4,3271.1,0.37589595]
[1732305238075,0.55,3272.6,3271.0,1.6511]
[1732305238620,0.55,3272.6,3270.7,5.91670114]
[1732305238959,0.55,3272.6,3270.8,2.5948375]
[1732305239217,0.55,3272.6,3271.0,3.0]
[1732305239421,1.59853105,3272.7,3270.7,5.91670114]
[1732305239591,1.56568371,3273.4,3270.9,3.37589595]
[1732305239792,1.56680135,3273.2,3270.9,0.37589595]
[1732305240104,1.51144091,3273.0,3270.9,0.37589595]
[1732305240304,1.56568371,3273.4,3270.9,0.37589595]
[1732305240523,1.56680135,3273.2,3270.9,0.37589595]
[1732305240829,0.55,3272.9,3270.9,0.37589595]
[1732305240973,1.6146,3272.4,3270.7,5.91670114]
[1732305241179,2.14853105,3272.7,3270.9,3.0]
[1732305241180,0.55,3272.1,3270.9,3.0]
[1732305241415,0.55,3272.1,3270.8,3.0]
[1732305241584,0.55,3272.1,3270.7,4.644]
[1732305241782,0.55,3272.1,3270.9,3.0]
[1732305242013,0.55,3272.1,3270.8,3.0]
[1732305242200,1.6146,3272.0,3270.9,1.0399709]
[1732305242407,1.6146,3272.0,3270.8,3.0]
[1732305242603,1.6146,3272.0,3270.9,1.04090986]
[1732305243260,1.6146,3272.0,3271.0,4.56295711]
[1732305243545,1.6146,3272.0,3271.1,1.41680581]
[1732305243842,1.6146,3272.0,3271.2,3.0]
[1732305244042,1.6146,3272.0,3271.3,1.04195099]
[1732305244248,1.6146,3272.0,3271.2,3.0]
[1732305244412,1.6146,3272.0,3271.3,2.60633974]
[1732305244746,1.6146,3272.0,3271.1,1.27270114]
[1732305244907,1.6146,3272.0,3271.3,3.0]
[1732305245117,1.6146,3272.0,3271.1,4.27270114]
[1732305245458,1.6146,3272.0,3271.3,1.27270114]
[1732305245632,1.6146,3272.0,3271.4,2.60981218]
[1732305245808,1.6146,3272.0,3271.5,1.04392487]
[1732305246008,1.6146,3272.0,3271.3,1.27270114]
[1732305246209,1.6146,3272.0,3271.5,1.27270114]
[1732305246488,1.6146,3272.0,3271.7,3.0]
[1732305246622,1.6146,3272.0,3271.5,4.27270114]
[1732305246808,3.03865808,3272.4,3271.8,1.27270114]
[1732305247013,3.03865808,3272.4,3271.9,3.6e-07]
[1732305247205,3.03865808,3272.4,3271.8,1.27270114]
[1732305247206,1.5252,3272.4,3271.8,1.79298045]
[1732305247447,1.5252,3272.4,3271.7,4.79298045]
[1732305247749,1.5252,3272.4,3271.5,2.5270472]
[1732305247933,1.5252,3272.4,3271.5,4.61880447]
[1732305248251,1.5252,3272.4,3271.6,2.5270472]
[1732305248924,0.2567462,3272.4,3271.6,4.61880447]
[1732305249138,0.2567462,3272.4,3271.8,2.5270472]
[1732305249341,0.2567462,3272.4,3271.9,2.8e-07]
[1732305249555,0.2567462,3272.4,3271.5,3.15914682]
[1732305249556,0.2567462,3272.4,3271.6,2.5270472]
[1732305249766,0.2567462,3272.4,3271.5,3.0]
[1732305249767,0.55,3272.4,3271.5,3.0]
[1732305250067,1.50160404,3272.3,3271.2,2.5270472]
[1732305250283,1.58179157,3272.1,3271.2,2.5270472]
[1732305250838,1.58179157,3272.1,3271.0,3.15914682]
[1732305250839,0.55,3272.0,3271.1,2.5270472]
[1732305251263,1.5248763,3271.7,3271.1,2.5270472]
[1732305251471,2.06172034,3271.6,3271.2,3.4e-07]
[1732305251776,2.06172034,3271.6,3270.6,2.62379547]
[1732305251777,2.06172034,3271.6,3270.9,4.3e-07]
[1732305251960,0.6153,3271.5,3270.9,4.3e-07]
[1732305252163,0.6153,3271.5,3270.7,3.0]
[1732305252164,0.6153,3271.5,3270.7,6.80791512]
[1732305252475,0.6153,3271.5,3270.7,3.0]
[1732305252766,0.6153,3271.5,3270.7,2.62379547]
[1732305252974,0.6153,3271.5,3270.6,3.0]
[1732305254192,0.6153,3271.5,3270.6,5.62379547]
[1732305254402,0.6153,3271.5,3270.6,3.0]
[1732305255008,0.55,3272.6,3270.6,3.0]
[1732305255174,1.58179157,3272.1,3270.5,1.589]
[1732305255368,1.5421092,3272.2,3270.5,1.589]
[1732305255607,1.5922979,3272.0,3270.5,1.589]
[1732305255812,0.01,3273.0,3270.5,1.589]
[1732305255813,2.09006597,3271.9,3270.5,1.589]
[1732305256305,2.09006597,3271.9,3270.9,1.90710663]
[1732305256510,2.09006597,3271.9,3270.8,1.90710663]
[1732305257018,2.09006597,3271.9,3270.9,4.57685942]
[1732305257225,2.09006597,3271.9,3271.0,3.0]
[1732305257385,2.09006597,3271.9,3270.7,1.27236721]
[1732305257569,2.09006597,3271.9,3270.8,1.57676764]
[1732305257775,2.09006597,3271.9,3270.9,1.57676764]
[1732305257975,2.09006597,3271.9,3270.6,2.30840906]
[1732305258172,1.51172034,3271.6,3270.4,1.90710663]
[1732305258374,1.51172034,3271.6,3269.4,4.45006536]
[1732305258375,0.55,3271.5,3270.0,1.90710663]
[1732305258589,0.55,3271.5,3269.8,2.04340243]
[1732305258895,1.74907257,3271.9,3269.9,1.5772238]
[1732305258896,0.55,3271.3,3269.9,1.5772238]
[1732305259107,0.55,3271.3,3269.9,0.40130243]
[1732305259414,0.21312338,3271.8,3269.5,1.6421]
[1732305259415,0.55,3271.1,3269.5,1.6421]
[1732305259577,0.55,3270.9,3269.4,0.40130243]
[1732305262829,0.55,3270.9,3269.5,1.5063]
[1732305263030,0.55,3270.9,3269.6,1.97643264]
[1732305263247,0.55,3270.9,3269.6,0.40130243]
[1732305264449,0.55,3270.9,3269.5,1.5063]
[1732305264450,0.55,3270.9,3269.4,0.40130243]
[1732305264643,0.55,3270.9,3269.5,1.5617]
[1732305264985,0.55,3270.9,3269.5,1.96300243]
[1732305265117,0.55,3270.9,3269.6,0.40130243]
[1732305265316,1.54006597,3271.9,3269.6,0.40130243]
[1732305265517,1.59918216,3272.5,3269.7,1.6582]
[1732305265819,0.83206041,3272.8,3269.8,0.40130243]
[1732305265820,1.50160404,3272.3,3269.8,0.40130243]
[1732305266014,1.59853105,3272.7,3269.9,1.6582]
[1732305266334,1.63673499,3272.7,3270.1,1.6582]
[1732305266653,1.63673499,3272.7,3270.2,0.40130243]
[1732305266654,1.59918216,3272.5,3270.2,0.40130243]
[1732305266853,1.50472608,3272.6,3270.1,1.6582]
[1732305267072,1.51245672,3272.8,3270.2,1.04987564]
[1732305267250,1.56650367,3272.9,3270.3,1.6582]
[1732305267554,1.51245672,3272.8,3270.5,1.6582]
[1732305268050,1.56680135,3273.2,3270.5,1.6582]
[1732305268217,1.51144091,3273.0,3270.5,1.6582]
[1732305268835,0.55,3272.7,3270.5,1.6582]
[1732305269032,0.55,3272.5,3270.5,1.6582]
[1732305269241,0.55,3272.3,3270.5,1.6582]
[1732305270175,0.55,3272.4,3270.5,2.05950243]
[1732305270470,0.55,3272.2,3270.5,2.05950243]
[1732305270929,0.55,3272.5,3270.5,2.05950243]
[1732305271132,0.55,3272.5,3270.6,1.45307725]
[1732305271332,0.55,3272.5,3270.6,0.40130243]
[1732305271770,0.55,3272.5,3270.7,1.6039]
[1732305271975,0.55,3272.5,3270.7,2.00520243]
[1732305272133,0.55,3272.6,3270.8,2.00520243]
[1732305272530,1.56568371,3273.4,3270.9,1.6039]
[1732305272735,0.01,3273.5,3271.0,0.40130243]
[1732305272736,1.56680135,3273.2,3271.0,0.40130243]
[1732305273037,1.51144091,3273.0,3271.1,1.5235]
[1732305273255,1.56680135,3273.2,3271.1,1.5235]
[1732305273545,0.55282016,3273.5,3271.1,1.5235]
[1732305273546,1.51144091,3273.0,3271.1,1.5235]
[1732305273787,0.1931591,3272.9,3271.1,1.5235]
[1732305274835,0.55,3272.8,3271.1,1.5235]
[1732305275030,0.1931591,3272.9,3271.1,1.5235]
[1732305275031,0.55,3272.6,3271.1,1.5235]
[1732305275234,0.55,3272.4,3271.1,1.5235]
[1732305275443,0.55,3272.7,3271.1,1.5235]
[1732305276794,0.55,3272.9,3271.2,2.02970243]
[1732305278668,0.55,3272.9,3271.2,1.6284]
[1732305278669,0.03819709,3272.8,3271.2,1.6284]
[1732305278871,0.55,3272.7,3271.2,1.6284]
[1732305279283,0.54282016,3273.5,3271.3,0.40130243]
[1732305279486,1.58164032,3273.6,3271.6,1.6023]
[1732305279669,1.51722367,3274.1,3271.8,1.6023]
[1732305279886,1.55541312,3274.1,3272.0,1.6023]
[1732305280201,1.55541312,3274.1,3272.0,2.00360243]
[1732305280202,0.15654131,3274.0,3272.0,2.00360243]
[1732305280376,1.55001282,3273.9,3272.0,2.00360243]
[1732305280697,0.05818965,3273.8,3272.0,1.6023]
[1732305280880,0.05818965,3273.8,3271.5,1.6295]
[1732305280881,1.58961,3273.5,3271.5,1.6295]
[1732305281082,0.55,3273.2,3271.5,1.6295]
[1732305281408,0.55,3272.9,3271.5,1.6295]
[1732305281570,0.55,3272.7,3271.5,1.6295]
[1732305281898,0.55,3272.8,3271.5,1.6295]
[1732305282200,0.55,3272.9,3271.5,2.05425979]
[1732305282358,0.55,3272.7,3271.5,1.6295]
[1732305282565,0.55,3272.7,3270.9,0.42475979]
[1732305282566,0.55,3272.7,3271.2,1.6295]
[1732305282763,0.55,3272.8,3271.2,1.6295]
[1732305283088,0.01,3272.7,3270.8,1.6295]
[1732305283285,0.01,3272.3,3270.8,1.6295]
[1732305283608,0.01,3272.3,3269.9,2.05425979]
[1732305283609,0.01,3272.1,3269.9,2.05425979]
[1732305283757,0.55,3272.0,3269.9,2.05425979]
[1732305283981,0.04821721,3272.1,3269.9,2.05425979]
[1732305283982,0.56,3271.8,3269.9,2.05425979]
[1732305284231,0.55,3271.6,3269.9,2.05425979]
[1732305284437,0.55,3271.4,3269.9,2.05425979]
[1732305284586,0.55,3271.2,3269.9,2.05425979]
[1732305284792,0.55,3271.0,3269.9,2.05425979]
[1732305285098,0.55,3270.8,3269.9,1.6295]
[1732305285487,0.55,3270.8,3269.9,2.05425979]
[1732305285999,0.55,3270.8,3268.7,2.5426841]
[1732305286000,0.55,3270.6,3269.1,1.5267]
[1732305286199,0.55,3270.4,3269.1,1.5267]
[1732305286529,0.55,3270.2,3269.2,0.42475979]
[1732305286936,0.55,3270.2,3269.3,0.00644458]
[1732305287139,0.5425,3270.2,3269.5,0.00644458]
[1732305287296,0.5425,3270.2,3269.6,0.00644458]
[1732305288794,0.5425,3270.2,3269.7,0.00644458]
[1732305289228,0.538191,3270.2,3269.8,0.00644458]
[1732305289431,0.55,3271.0,3269.9,0.00644458]
[1732305289735,0.55,3271.0,3270.1,0.00644458]
[1732305289736,0.58822429,3271.0,3270.1,0.00644458]
[1732305289931,0.58822429,3271.0,3270.2,0.00644458]
[1732305290814,2.16146085,3271.0,3270.2,0.00644458]
[1732305291043,1.57155416,3271.6,3270.2,0.00644458]
[1732305291195,1.62290965,3271.5,3270.2,0.00644458]
[1732305291402,1.63290965,3271.5,3270.2,0.00644458]
[1732305291738,0.2215115,3271.5,3270.2,0.00644458]
[1732305291919,0.05822053,3271.5,3270.2,0.00644458]
[1732305292229,0.01,3271.5,3270.2,0.00644458]
[1732305292407,0.03822438,3271.5,3270.2,0.00644458]
[1732305292828,0.03822438,3271.5,3270.3,0.00644458]
[1732305293011,0.03822438,3271.5,3270.4,0.00644458]
[1732305293223,0.01,3272.2,3270.5,0.00644458]
[1732305293442,0.21638217,3272.2,3270.6,0.00644458]
[1732305293801,0.01,3271.9,3270.6,0.00644458]
[1732305294837,1.57155416,3271.6,3270.6,0.00644458]
[1732305295139,0.0382168,3271.5,3270.6,0.00644458]
[1732305295447,1.60977096,3271.6,3270.6,0.00644458]
[1732305295633,0.55,3271.5,3270.8,0.00644458]
[1732305296414,2.06311514,3272.2,3271.0,0.00644458]
[1732305296618,2.27042665,3272.2,3271.0,0.00644458]
[1732305296914,0.01,3271.9,3271.0,0.00644458]
[1732305297114,0.55,3271.8,3271.0,0.00644458]
[1732305297318,0.55,3271.6,3271.0,0.00644458]
[1732305297528,0.03821688,3271.5,3271.0,0.00644458]
[1732305300620,0.55,3271.4,3271.0,0.00644458]
[1732305300820,0.0382185,3271.3,3271.0,0.00644458]
[1732305301013,0.55,3271.4,3271.0,0.00644458]
[1732305301332,0.03821872,3271.3,3271.0,0.00644458]
[1732305302068,0.55,3271.4,3271.0,0.00644458]
[1732305302232,0.03821873,3271.9,3271.1,0.00644458]
[1732305302430,0.55,3271.8,3271.2,0.00644458]
[1732305302641,0.55,3271.6,3271.3,0.00644458]
[1732305303030,0.01,3272.3,3271.5,0.00644458]
[1732305303231,0.04821302,3272.3,3271.5,0.00644458]
[1732305303431,0.01,3272.1,3271.5,0.00644458]